[Event "1st Bangalore GM-Open-A 2024"]
[Site "Bangalore"]
[Date "2024.01.21"]
[Round "6.2"]
[White "Mitrabha, Guha"]
[Black "Pranav Anand"]
[Result "1-0"]
[ECO "E11"]
[WhiteElo "2504"]
[BlackElo "2513"]
[Annotator "TA"]
[PlyCount "195"]
[EventDate "2024.01.20"]
[EventType "swiss"]
[EventCountry "IND"]
[SourceTitle "playchess.com"]
[Source "ChessBase"]
[SourceQuality "1"]
[TimeControl "5400+30"]

{[%evp 19,195,0,10,0,0,-8,20,3,8,0,33,38,29,21,29,21,33,0,-8,0,29,17,23,6,22,16,30,16,90,93,83,91,82,81,112,113,112,14,53,54,70,72,72,60,68,40,41,0,31,31,31,18,20,12,12,5,6,5,75,75,75,75,75,68,67,68,68,68,68,68,68,51,85,85,85,85,85,70,70,68,72,72,72,0,80,37,37,37,37,37,63,27,28,28,28,28,28,14,14,14,14,14,14,14,14,14,14,14,14,14,14,14,14,14,14,14,14,14,14,14,14,14,14,14,40,14,14,14,14,14,14,0,14,14,14,14,14,14,21,14,14,14,14,8,8,8,8,8,8,8,8,6,484,475,1194,1004,29973,29974,29974,29975,29975,29976,29976,29977,29977,29978,29978,29979,29979,29980,29980,29981,29981,29982,29982,29983,29983,29984]} 1. d4 {[%emt 0:02:41]} Nf6 {[%emt 0:00:08]} 2. c4 {[%emt 0:00:11]} e6 {[%emt 0:00:04]} 3. Nf3 {[%emt 0:00:05]} d5 {[%emt 0:00:04]} 4. g3 {[%emt 0:00:13]} Bb4+ {[%emt 0:00:12]} 5. Bd2 {[%emt 0:00:07]} Be7 {[%emt 0:00:04]} 6. Bg2 {[%emt 0:00:05]} O-O {[%emt 0:00:05]} 7. O-O {[%emt 0:00:06]} Nbd7 {[%emt 0:00:03]} 8. Bc3 {[%emt 0:00:07]} b6 {[%emt 0:00:02]} 9. cxd5 {[%emt 0:00:13]} exd5 {[%emt 0:00:02]} 10. Ne5 {[%emt 0:00:15]} Bb7 {[%emt 0:03:44]} 11. Nd2 {[%emt 0:00:22]} Re8 {[%emt 0:08:32]} 12. Rc1 {[%emt 0:01:11]} Nf8 {[%emt 0:03:32]} 13. Qa4 {[%emt 0:00:37]} Bd6 {[%emt 0:06:02]} 14. Ndc4 {[%emt 0:13:54]} a6 {[%emt 0:05:11]} (14... a5 $5 {[%cal Rb6b5]}) 15. Qc2 {[%emt 0:07:05]} Be7 {[%emt 0:02:37]} 16. Ne3 {[%emt 0:00:45]} Ne6 {[%emt 0:01:01]} 17. Rfd1 {[%emt 0:00:28]} Bf8 {[%emt 0:02:35]} 18. Be1 {[%emt 0:06:45]} c5 {[%emt 0:07:22]} 19. dxc5 {[%emt 0:02:15]} Bxc5 {[%emt 0:02:00]} (19... bxc5 $5 {[%cal Re6d4]} 20. Nd3 Qb8 $11) 20. Nf5 {[%emt 0:03:23]} Rc8 {[%emt 0:04:59]} (20... Bf8 {simplifies} 21. Nc6 Qc7 22. Nb4 Qxc2 23. Nxc2 Rad8) 21. Qb1 {[%emt 0:01:25]} Ng5 {[%emt 0:02:44]} 22. Nd3 {[%emt 0:03:15]} Qd7 {[%emt 0:07:44]} 23. b4 {[%emt 0:07:39]} d4 {[%emt 0:15:57]} (23... Rxe2 $2 24. Nxc5 (24. Nf4 d4 $11) 24... bxc5 25. bxc5 $18) (23... Bf8 $11 24. Rxc8 Bxc8) 24. h4 $16 {[%emt 0:16:59]} (24. bxc5 $2 {too greedy.} Bxg2 25. Bd2 (25. Nd6 $2 Bd5 $19) 25... Qxf5 $17) (24. Nxc5 $2 {is the wrong capture.} bxc5 25. Qc2 (25. Bxb7 $2 Qxb7 26. h4 Nh3+ 27. Kh2 h5 $19) 25... Bxg2 26. Kxg2 g6 $19) (24. Bxb7 Qxb7 25. Nf4 (25. bxc5 $2 Nh3+ 26. Kf1 Qh1#) 25... Nh5 $14) 24... Bxg2 {[%emt 0:13:31]} (24... Qxf5 $2 25. Bxb7 Nh3+ 26. Kg2 $18) 25. hxg5 {[%emt 0:00:15]} Ba8 {[%emt 0:04:48]} 26. Nxc5 {[%emt 0:09:58]} bxc5 {[%emt 0:00:16]} 27. gxf6 {[%emt 0:00:55]} Be4 {[%emt 0:02:50]} 28. Qb2 {[%emt 0:00:32]} (28. Nh6+ $1 $16 gxh6 29. Qb2) 28... Qxf5 {[%emt 0:01:27]} 29. f3 {[%emt 0:00:34]} Ba8 {[%emt 0:01:46]} 30. Rxc5 $1 {[%emt 0:00:37]} Rxc5 {[%emt 0:00:38]} 31. bxc5 {[%emt 0:00:02]} Qxc5 {[%emt 0:01:38]} 32. Bf2 {[%emt 0:00:42]} Qe5 {[%emt 0:00:57]} 33. Qxd4 {[%emt 0:00:59]} (33. fxg7 {with more complications.} Qxe2 34. Qxe2 Rxe2 35. Bxd4 Bxf3 36. Rb1) 33... Qxf6 {[%emt 0:00:28]} 34. Qxf6 {[%emt 0:01:07]} gxf6 {[%emt 0:00:01]} 35. g4 {[%emt 0:00:33]} Kg7 {[%emt 0:00:28]} 36. Kf1 {[%emt 0:02:15]} Bc6 {[%emt 0:00:20]} 37. e4 {[%emt 0:00:27]} h5 {[%emt 0:01:05]} 38. gxh5 {[%emt 0:00:26]} Rh8 {[%emt 0:00:06]} (38... f5 $11) 39. Rd6 $16 {[%emt 0:01:19]} Bb5+ {[%emt 0:00:01]} 40. Kg2 {[%emt 0:00:09]} Rxh5 {[%emt 0:00:10]} 41. Bd4 {[%emt 0:00:04]} Rg5+ {[%emt 0:00:53]} 42. Kf2 {[%emt 0:00:06]} Rg6 {[%emt 0:00:01]} 43. Ke3 {[%emt 0:00:06]} Rh6 {[%emt 0:00:58]} 44. Bc3 {[%emt 0:00:38]} Rg6 {[%emt 0:00:46]} 45. Rd4 {[%emt 0:00:07]} Rh6 {[%emt 0:01:41]} 46. a4 {[%emt 0:00:25]} Bc6 {[%emt 0:00:45]} 47. a5 {[%emt 0:00:31]} Bb5 {[%emt 0:00:48]} 48. Rd5 {[%emt 0:00:09]} Kf8 {[%emt 0:01:42]} 49. Rd6 {[%emt 0:00:54]} Ke7 {[%emt 0:00:18]} 50. Bb4 {[%emt 0:00:52]} Ke8 {[%emt 0:00:06]} 51. Bc3 {[%emt 0:02:14]} Ke7 {[%emt 0:00:12]} 52. e5 {[%emt 0:00:35]} Rg6 {[%emt 0:00:45]} 53. Bb4 {[%emt 0:00:06]} Ke8 {[%emt 0:00:07]} 54. exf6 {[%emt 0:00:04]} Rg2 {[%emt 0:00:28]} 55. Rd4 {[%emt 0:03:23]} (55. Rd5 $5 {[%cal Rd5e5]}) 55... Re2+ {[%emt 0:00:31]} 56. Kf4 {[%emt 0:00:09]} Rc2 {[%emt 0:01:16]} 57. Re4+ {[%emt 0:00:02]} Kd8 {[%emt 0:00:48]} 58. Be7+ {[%emt 0:00:01]} Kc7 {[%emt 0:00:24]} 59. Re1 {[%emt 0:00:36]} Bc4 {[%emt 0:00:57]} 60. Bc5 {[%emt 0:00:29]} Kc6 {[%emt 0:00:22]} 61. Bb6 {[%emt 0:00:10]} Kb5 {[%emt 0:00:50]} 62. Re5+ {[%emt 0:00:09]} Kb4 {[%emt 0:00:19]} 63. Re4 {[%emt 0:02:05]} Re2 {[%emt 0:00:26]} 64. Rd4 {[%emt 0:00:07]} Kc3 {[%emt 0:00:36]} 65. Rd7 {[%emt 0:00:20]} Rd2 {[%emt 0:00:33]} 66. Rc7 {[%emt 0:00:21]} Kb4 {[%emt 0:00:28]} 67. Rc8 {[%emt 0:00:32]} Rd3 {[%emt 0:00:27]} 68. Ke4 {[%emt 0:00:42]} Rd2 {[%emt 0:00:32]} 69. f4 {[%emt 0:00:54]} Re2+ {[%emt 0:00:23]} 70. Kf3 {[%emt 0:00:04]} Rc2 {[%emt 0:00:12]} 71. Rb8 {[%emt 0:00:14]} Kc3 {[%emt 0:00:37]} 72. Bc7 {[%emt 0:00:29]} Kd4 {[%emt 0:00:45]} 73. Be5+ {[%emt 0:00:35]} Kc5 {[%emt 0:00:18]} 74. Kg4 {[%emt 0:00:37]} Rg2+ {[%emt 0:00:15]} 75. Kh5 {[%emt 0:00:07]} Ra2 {[%emt 0:00:57]} 76. Kh6 {[%emt 0:00:11]} Rg2 $1 {[%emt 0:00:45]} 77. Kh7 {[%emt 0:01:14]} Bd3+ {[%emt 0:00:14]} 78. Kh8 {[%emt 0:00:16]} Bc4 {[%emt 0:00:11]} 79. Rb6 {[%emt 0:00:19]} Rg4 {[%emt 0:00:36]} 80. Rb2 {[%emt 0:00:54]} Rg6 {[%emt 0:00:23]} 81. Rh2 {[%emt 0:00:20]} Kb4 {[%emt 0:00:46]} 82. Rh7 {[%emt 0:00:36]} Rg1 {[%emt 0:00:46]} 83. Rg7 {[%emt 0:00:00]} Rd1 $1 {[%emt 0:00:04]} 84. Rg2 {[%emt 0:01:03]} Kxa5 {[%emt 0:00:13]} 85. Kg7 {[%emt 0:00:06]} Kb5 $2 {[%emt 0:01:16][%mdl 8192]} (85... Rd7 $1 $11 {and Black stays safe.}) 86. Rb2+ $18 {[%emt 0:00:07]} Kc5 {[%emt 0:00:54]} (86... Ka4 $142 87. Rb7 Rd8 88. Rxf7 Bd5) 87. Rb7 $1 $18 {[%emt 0:00:09]} a5 {[%emt 0:00:39]} 88. Rc7+ {[%emt 0:00:11]} Kb5 {[%emt 0:00:10]} 89. Rxc4 {[%emt 0:00:08]} Kxc4 {[%emt 0:00:04]} 90. Kxf7 {[%emt 0:00:03]} Rd8 {[%emt 0:00:42]} 91. Ke7 {[%emt 0:00:37]} Ra8 {[%emt 0:00:17]} 92. f7 {[%emt 0:00:23]} Kd5 {[%emt 0:00:01]} 93. f8=Q {[%emt 0:00:20]} Rxf8 {[%emt 0:00:05]} 94. Kxf8 {[%emt 0:00:03]} Ke6 {[%emt 0:00:10]} 95. Kg7 $1 {[%emt 0:00:01]} Kf5 {[%emt 0:00:29] [#]} 96. Kh6 $1 {[%emt 0:00:02]} a4 {[%emt 0:00:04] [#]} 97. Kh5 $1 {[%emt 0:00:03]} a3 {[%emt 0:00:04]} 98. Kh4 {[%emt 0:00:02]} 1-0

[Event "1st Bangalore GM-Open-A 2024"]
[Site "Bangalore"]
[Date "2024.01.21"]
[Round "6.3"]
[White "Sethuraman, S.P."]
[Black "Tahbaz, Arash"]
[Result "1-0"]
[ECO "B48"]
[WhiteElo "2594"]
[BlackElo "2425"]
[Annotator "TA"]
[PlyCount "63"]
[EventDate "2024.01.20"]
[EventType "swiss"]
[EventCountry "IND"]
[SourceTitle "playchess.com"]
[Source "ChessBase"]
[SourceQuality "1"]
[TimeControl "5400+30"]

{[%evp 14,63,22,20,34,26,13,8,9,0,0,0,9,0,0,0,0,0,0,7,63,56,59,56,60,48,55,48,602,601,612,583,672,642,1750,1716,29987,712,1152,1148,1076,1074,969,845,939,838,838,-79,808,808,939,877]} 1. e4 {[%emt 0:00:13]} c5 {[%emt 0:00:11]} 2. Nf3 {[%emt 0:00:05]} e6 {[%emt 0:00:04]} 3. d4 {[%emt 0:00:12]} cxd4 {[%emt 0:00:05]} 4. Nxd4 {[%emt 0:00:05]} Nc6 {[%emt 0:00:05]} 5. Nc3 {[%emt 0:00:47]} Qc7 {[%emt 0:00:05]} 6. Be3 {[%emt 0:02:23]} a6 {[%emt 0:00:05]} 7. Qd2 {[%emt 0:00:05]} Nf6 {[%emt 0:00:34]} 8. O-O-O {[%emt 0:00:06]} Be7 {[%emt 0:00:15] is recently more successful than 8...Bb4. B48: Sicilian: Taimanov: 5 Nc3 Qc7 6 Be3 a6 without Be2.} 9. f3 {[%emt 0:00:19]} b5 {[%emt 0:00:34]} 10. g4 {[%emt 0:01:02]} Nxd4 {[%emt 0:00:06] The position is equal.} 11. Bxd4 {[%emt 0:00:06]} Bb7 {[%emt 0:00:03]} 12. Kb1 {[%emt 0:01:03]} O-O {[%emt 0:01:51]} 13. Rg1 {[%emt 0:01:58]} Rac8 {[%emt 0:23:19]} 14. Qf2 {[%emt 0:03:50]} Bc6 {[%emt 0:07:20]} 15. Bd3 $36 {[%emt 0:05:13][%mdl 2048] White has the initiative.} b4 {[%emt 0:03:59]} 16. e5 {[%emt 0:08:06] [#]} Nd5 $146 {[%emt 0:06:32]} (16... bxc3 $2 17. exf6 Bxf6 18. Bxf6 $18) (16... Ne8 $1 $11 17. Ne2 Bb5) ({Predecessor:} 16... Ne8 17. Ne4 f6 18. exf6 Nxf6 19. Qh4 Bxe4 20. fxe4 Nd5 21. Qh5 Nf4 22. Qe5 Qxe5 23. Bxe5 {½-½ Muljadi,P (2425)-Quinones Borda,J (2435) WZ-ch C03 email 2019}) 17. Nxd5 $14 {[%emt 0:00:15]} Bxd5 {[%emt 0:00:04]} 18. f4 {[%emt 0:00:10]} Bc4 {[%emt 0:08:55]} 19. Bb6 {[%emt 0:11:25]} Qb7 {[%emt 0:02:50]} 20. Rg3 $1 {[%emt 0:00:17][%cal Od3h7] Threatens to win with Bxh7+!} Bh4 $2 {[%emt 0:08:03][%mdl 8192] [#]} (20... h6 $14) 21. Bxh7+ $1 $18 {[%emt 0:01:48][%mdl 512]} Kh8 {[%emt 0:00:08][%cal Oh4g3] [#]} 22. Be4 $1 {[%emt 0:02:10][%mdl 512] Rh3 would kill now.} Qxe4 {[%emt 0:09:46]} (22... Bxg3 23. Qg2) 23. Rh3 {[%emt 0:00:16]} Kg8 {[%emt 0:00:10]} 24. Qxh4 {[%emt 0:01:17][%csl Gh3][%cal Rh4h8]} f6 {[%emt 0:00:06]} 25. Qh8+ {[%emt 0:04:02]} (25. Rxd7 Qh1+) (25. exf6 $142 Qxc2+ {[%mdl 64] Decoy} 26. Kxc2 Bxa2+ 27. Kd2 Kf7 28. fxg7 Rg8 29. Rc1 {[%mdl 64] Deflection} Rxc1 30. Bd8) 25... Kf7 {[%emt 0:00:04] Black is weak on the dark squares} 26. Rxd7+ {[%emt 0:00:12]} Ke8 {[%emt 0:00:01] [#]} 27. Qxf8+ $3 {[%emt 0:00:02][%mdl 576] Double Attack} Kxd7 {[%emt 0:00:03]} 28. Qd6+ {[%emt 0:00:18]} (28. Qxb4 $2 Qh1+) (28. Qxg7+ Kc6 29. b3 (29. Be3 $2 b3 $19 {[%mdl 64] Decoy}) 29... Bxb3 30. Rxb3 (30. axb3 $2 Kxb6 31. Rd3 Qe2 $19) 30... Kxb6 $11) 28... Ke8 {[%emt 0:00:03]} 29. Rh8+ {[%emt 0:00:08]} (29. Qxb4 $2 Qh1+) 29... Kf7 {[%emt 0:00:04]} 30. Qd7+ {[%emt 0:00:02]} (30. Rxc8 $2 {leads to mate.} Qe1+) 30... Kg6 {[%emt 0:00:03][%mdl 1024] ( -> ...Qe1+). Black has strong compensation.} 31. f5+ {[%emt 0:00:04]} (31. Qxc8 $2 Qe1#) 31... Kg5 {[%emt 0:00:02]} 32. Qd2+ {[%emt 0:00:44] Ingenious play by Sethuraman!   Weighted Error Value: White=0.05 (flawless) /Black=0.75} (32. Qxc8 $2 Qe1#) ({Not} 32. Qxg7+ Kf4 33. Qh6+ (33. Rxc8 $2 Qe1#) (33. Be3+ $2 Kxe3 34. Qh6+ Ke2 $19) 33... Kxe5 $11) 1-0

[Event "1st Bangalore GM-Open-A 2024"]
[Site "Bangalore"]
[Date "2024.01.21"]
[Round "6.4"]
[White "Deepan Chakkravarthy J."]
[Black "Short, Nigel D"]
[Result "0-1"]
[ECO "C96"]
[WhiteElo "2422"]
[BlackElo "2592"]
[Annotator "TA"]
[PlyCount "80"]
[EventDate "2024.01.20"]
[EventType "swiss"]
[EventCountry "IND"]
[SourceTitle "playchess.com"]
[Source "ChessBase"]
[SourceQuality "1"]
[TimeControl "5400+30"]

{[%evp 32,80,29,0,34,31,33,20,19,28,31,20,62,0,0,-31,0,0,0,-46,0,-46,-49,-86,-86,-85,-88,-72,-69,-71,-83,-80,-87,-95,-99,-121,-131,-127,-108,-173,-170,-198,-199,-192,-183,-156,-106,-107,-90,-619,-607]} 1. e4 {[%emt 0:00:39]} e5 {[%emt 0:00:32]} 2. Nf3 {[%emt 0:00:07]} Nc6 {[%emt 0:00:04]} 3. Bb5 {[%emt 0:00:16]} a6 {[%emt 0:00:24]} 4. Ba4 {[%emt 0:00:05]} Nf6 {[%emt 0:00:06]} 5. O-O {[%emt 0:00:16]} Be7 {[%emt 0:00:32]} 6. Re1 {[%emt 0:00:45]} b5 {[%emt 0:00:05]} 7. Bb3 {[%emt 0:00:04]} d6 {[%emt 0:00:27]} 8. c3 {[%emt 0:00:19]} O-O {[%emt 0:00:06]} 9. h3 {[%emt 0:00:12]} Na5 {[%emt 0:02:56]} 10. Bc2 {[%emt 0:00:12]} c5 {[%emt 0:00:07]} 11. d4 {[%emt 0:00:06]} Nd7 {[%emt 0:00:04]} 12. Nbd2 {[%emt 0:02:40]} cxd4 {[%emt 0:00:24]} 13. cxd4 {[%emt 0:00:02]} Nc6 {[%emt 0:00:06]} 14. Nf1 {[%emt 0:02:11]} Nxd4 {[%emt 0:00:14]} 15. Nxd4 {[%emt 0:00:08]} exd4 {[%emt 0:00:05]} 16. Qxd4 {[%emt 0:00:04]} Ne5 {[%emt 0:01:01]} 17. Qd1 {[%emt 0:02:25] [#]} (17. f4 $5 {[%cal Rf4e5]} Nc6 18. Qe3 $11) 17... Bh4 $146 {[%emt 0:07:59] C96: Closed Ruy Lopez: Chigorin Defence: 11 d4, replies other than 11...Qc7.} ({Predecessor:} 17... Bb7 18. Ne3 Rc8 19. Nf5 Bf6 20. Rb1 d5 21. Bf4 dxe4 22. Bxe4 Bxe4 23. Rxe4 Rc4 24. Rxc4 Nxc4 25. Qg4 {½-½ Galperin,P (2461)-Klekowski,M (2510) Titled Tuesday intern op 10th Nov blitz 2020 (7)}) 18. Be3 {[%emt 0:11:17]} Re8 {[%emt 0:01:53]} 19. Bb3 {[%emt 0:09:22]} Be6 {[%emt 0:04:43] The position is equal.} 20. Bxe6 {[%emt 0:16:14]} Rxe6 {[%emt 0:00:52]} 21. Rc1 {[%emt 0:00:21]} Qd7 {[%emt 0:05:29]} 22. Bd4 {[%emt 0:11:17]} (22. Qd5 $14 Rae8 23. b3) 22... Rae8 $11 {[%emt 0:04:50]} 23. Rc2 {[%emt 0:03:01]} Ng6 {[%emt 0:14:05]} 24. Qg4 {[%emt 0:02:03]} Qe7 {[%emt 0:00:05]} 25. Rce2 {[%emt 0:04:29]} (25. Nd2 $11) 25... h5 {[%emt 0:12:05]} 26. Qf5 {[%emt 0:02:54]} (26. Qxh5 $2 {too greedy.} Nf4 27. Qg4 Nxe2+ 28. Rxe2 Bf6 29. Bxf6 Qxf6 $19) (26. Qf3 $11 {deserves consideration.}) 26... Bf6 $15 {[%emt 0:00:05]} 27. Bxf6 {[%emt 0:05:23]} Rxf6 {[%emt 0:00:09]} 28. Qg5 {[%emt 0:00:02]} Nf4 $36 {[%emt 0:08:52][%cal Of4h3][%mdl 2048] [#] ...Nxh3+! would be deadly. White is under strong pressure.} 29. Re3 {[%emt 0:00:21]} Qe5 {[%emt 0:03:07]} 30. Qxe5 {[%emt 0:00:23]} dxe5 {[%emt 0:00:03]} 31. Rc3 {[%emt 0:00:21] Prevents Rc8} Rg6 {[%emt 0:00:23]} 32. Rg3 {[%emt 0:02:15]} Rc6 {[%emt 0:00:17]} 33. Ra3 {[%emt 0:01:00]} Rd8 {[%emt 0:01:19]} 34. h4 {[%emt 0:00:12]} Rc2 {[%emt 0:10:11]} 35. Rxa6 {[%emt 0:00:21]} (35. Rb1 $17) 35... Rxb2 $19 {[%emt 0:00:06]} 36. Ra3 {[%emt 0:08:19]} Ne2+ {[%emt 0:06:08]} 37. Kh2 {[%emt 0:00:05]} Nd4 {[%emt 0:00:09] Prevents Rb3.} 38. Kg1 {[%emt 0:00:13]} Nc2 {[%emt 0:02:46] Prevents Ne3. Black is much more active.} (38... b4 $142 39. Ra5 Ne2+ 40. Kh2 Nc3) 39. Re2 $17 {[%emt 0:00:53]} Rd1 {[%emt 0:00:06][%cal Od1f1] White must now prevent ...Rxf1+!} 40. Rc3 $2 {[%emt 0:03:00][%mdl 8192] [#]} (40. Ra8+ $17 Kh7 41. Rd2 Rxd2 42. Nxd2) 40... Rxf1+ $1 {[%emt 0:00:06][%mdl 576] Back Rank.   Weighted Error Value: White=0.36/Black=0.11 (very precise)} 0-1

[Event "1st Bangalore GM-Open-A 2024"]
[Site "Bangalore"]
[Date "2024.01.21"]
[Round "6.5"]
[White "Viani Antonio Dcunha"]
[Black "Aronyak Ghosh"]
[Result "1/2-1/2"]
[ECO "B12"]
[WhiteElo "2407"]
[BlackElo "2541"]
[Annotator "TA"]
[PlyCount "51"]
[EventDate "2024.01.20"]
[EventType "swiss"]
[EventCountry "IND"]
[SourceTitle "playchess.com"]
[Source "ChessBase"]
[SourceQuality "1"]
[TimeControl "5400+30"]

{[%evp 9,51,5,8,2,14,5,0,0,19,11,0,0,0,0,0,-10,0,0,0,0,0,-7,0,0,0,0,0,0,0,0,0,0,0,0,0,0,0,0,0,0,0,0,0,0]} 1. e4 {[%emt 0:02:45]} c6 {[%emt 0:00:52]} 2. d4 {[%emt 0:00:12]} d5 {[%emt 0:00:06]} 3. e5 {[%emt 0:00:06]} Bf5 {[%emt 0:00:24]} 4. h4 {[%emt 0:00:12]} h5 {[%emt 0:00:41]} 5. Bd3 {[%emt 0:00:29]} Bxd3 {[%emt 0:00:45] The position is equal.} 6. Qxd3 {[%emt 0:00:09][%cal Oe5e6]} Qa5+ {[%emt 0:00:38]} 7. Nd2 {[%emt 0:00:39][%cal Oe5e6] aiming for e6!} e6 {[%emt 0:00:46]} 8. Ngf3 {[%emt 0:00:50]} Nh6 {[%emt 0:01:22]} 9. O-O {[%emt 0:00:42]} Nf5 {[%emt 0:00:40]} 10. a4 {[%emt 0:01:04]} Nd7 {[%emt 0:04:40]} 11. Nb3 {[%emt 0:08:58]} Qa6 {[%emt 0:02:30]} 12. Qd1 {[%emt 0:02:38]} Be7 {[%emt 0:02:09]} 13. g3 {[%emt 0:00:37]} Rc8 {[%emt 0:01:39]} 14. Kg2 {[%emt 0:07:59]} g6 {[%emt 0:10:47]} 15. Bf4 {[%emt 0:08:03]} b6 {[%emt 0:11:44]} 16. a5 {[%emt 0:12:25]} Qb5 {[%emt 0:02:54]} 17. axb6 {[%emt 0:02:57]} axb6 {[%emt 0:00:27]} 18. Qd3 {[%emt 0:05:30]} Qxd3 {[%emt 0:02:12]} 19. cxd3 {[%emt 0:00:07]} O-O {[%emt 0:00:19]} 20. Ra7 {[%emt 0:01:30]} Rfd8 {[%emt 0:00:09]} 21. Rfa1 {[%emt 0:02:48]} Kf8 {[%emt 0:06:59]} 22. Rb7 {[%emt 0:03:34]} Rb8 {[%emt 0:01:42]} 23. Rc7 {[%emt 0:00:44]} Rbc8 {[%emt 0:00:06]} 24. Rb7 {[%emt 0:10:41]} Rb8 {[%emt 0:00:03]} 25. Rc7 {[%emt 0:00:45]} Rbc8 {[%emt 0:00:02]} 26. Rb7 {[%emt 0:00:20] An uneventful encounter.   Weighted Error Value: White=0.01 (flawless) /Black=0.01 (flawless)} 1/2-1/2

[Event "1st Bangalore GM-Open-A 2024"]
[Site "Bangalore"]
[Date "2024.01.21"]
[Round "6.6"]
[White "Panda Sambit"]
[Black "Iniyan, Pa"]
[Result "0-1"]
[ECO "D38"]
[WhiteElo "2404"]
[BlackElo "2515"]
[Annotator "TA"]
[PlyCount "72"]
[EventDate "2024.01.20"]
[EventType "swiss"]
[EventCountry "IND"]
[SourceTitle "playchess.com"]
[Source "ChessBase"]
[SourceQuality "1"]
[TimeControl "5400+30"]

{[%evp 12,72,6,11,4,1,16,6,11,-10,21,-17,-7,-19,-11,-22,-7,-12,-10,-51,-24,-60,-14,-21,14,-41,-39,-44,0,0,12,-52,-56,-56,-68,-93,-89,-106,-103,-147,-61,-63,-56,-70,-68,-88,-82,-109,-117,-197,-199,-870,-854,-1518,-1435,-1508,-1323,-3378,-3098,-6216,-5924,-1624,-1408]} 1. d4 {[%emt 0:08:07]} Nf6 {[%emt 0:00:39]} 2. c4 {[%emt 0:00:40]} e6 {[%emt 0:00:09]} 3. Nf3 {[%emt 0:00:56]} d5 {[%emt 0:00:37]} 4. Nc3 {[%emt 0:00:05]} Bb4 {[%emt 0:00:08]} 5. Qa4+ {[%emt 0:00:05]} Nc6 {[%emt 0:00:09]} 6. e3 {[%emt 0:00:41][%cal Be2e3,Be3e4][%mdl 32]} O-O {[%emt 0:00:12]} 7. Bd2 {[%emt 0:00:04]} dxc4 {[%emt 0:03:47]} 8. Bxc4 {[%emt 0:01:21]} Bd6 {[%emt 0:00:09]} 9. Qc2 {[%emt 0:00:19]} a6 {[%emt 0:04:13] The position is equal.} 10. e4 {[%emt 0:18:37] Hoping for e5.} Bb4 {[%emt 0:06:52]} 11. Qd3 {[%emt 0:15:11]} b5 {[%emt 0:01:12]} 12. Bb3 {[%emt 0:02:16] [#]} e5 $1 {[%emt 0:01:46][%cal Re5d4]} 13. d5 {[%emt 0:06:08]} Bg4 {[%emt 0:00:16]} 14. O-O {[%emt 0:16:16]} Bxf3 {[%emt 0:03:06]} 15. gxf3 {[%emt 0:00:35]} Nd4 {[%emt 0:00:41]} 16. f4 {[%emt 0:01:58]} Nd7 {[%emt 0:03:33] Excellent horsemanship.} (16... Nxb3 $15 {feels stronger.} 17. axb3 exf4) 17. Bd1 $1 $11 {[%emt 0:01:01]} Qf6 {[%emt 0:00:47]} (17... c5 $5 {[%cal Rf7f5]}) 18. Kh1 {[%emt 0:04:54]} (18. Qh3 $11 Rad8 19. a3) 18... exf4 $15 {[%emt 0:02:58][%cal Of6h4]} 19. Nxb5 {[%emt 0:06:20][%mdl 64] Discovered Attack} Bc5 {[%emt 0:03:20]} (19... Ne5 $15 20. Qh3 (20. Qxd4 Bxd2 21. Nxc7 f3 $15) 20... Bxd2 21. Nxd4 Qb6) 20. Nxd4 $11 {[%emt 0:05:44]} ({Of course not} 20. Nxc7 Rac8 21. d6 (21. Nxa6 $2 {is the wrong capture.} Ne5 $19 {[%mdl 64] Deflection}) 21... f3 $15) 20... Bxd4 {[%emt 0:00:09]} 21. Qf3 {[%emt 0:01:38]} (21. Rc1 $11) 21... Bxb2 $15 {[%emt 0:01:39]} 22. Rb1 {[%emt 0:00:03]} Be5 {[%emt 0:00:49]} 23. Rg1 {[%emt 0:00:33]} Rab8 $36 {[%emt 0:02:55][%mdl 2048] Black is in control.} 24. Bb3 {[%emt 0:00:07]} g6 {[%emt 0:01:59]} 25. Rg4 {[%emt 0:01:07]} h5 {[%emt 0:01:38]} (25... Rb5 $17 {Strongly threatening ...Nc5.} 26. Rc1 Nc5) 26. Rg2 {[%emt 0:00:02][%cal Ob1g1]} Kh7 {[%emt 0:08:57]} 27. Rbg1 {[%emt 0:00:34]} Qh4 {[%emt 0:00:34]} 28. Rg5 {[%emt 0:01:50]} Bd6 {[%emt 0:00:14]} 29. Bc3 {[%emt 0:03:23] aiming for e5.} Rbe8 {[%emt 0:00:56]} 30. Ba4 {[%emt 0:02:45]} (30. R5g2 $17) 30... Ne5 $19 {[%emt 0:00:07][%cal Bd7e5,Be5d3,Bd3f2][%mdl 32]} 31. Qg2 {[%emt 0:00:47] [#]} (31. Rxe5 Rxe5 32. Bxe5 Bxe5 33. Rg2) 31... Nd3 $1 {[%emt 0:03:00] Black is clearly winning.} 32. Rxg6 {[%emt 0:01:00]} (32. Rxh5+ Qxh5) 32... Nxf2+ {[%emt 0:00:05]} 33. Qxf2 {[%emt 0:00:03]} Qxf2 {[%emt 0:00:09]} 34. R6g2 {[%emt 0:01:47]} Qf3 {[%emt 0:00:53][%cal Od6c5] ( -> ...Bc5!)} 35. Bg7 {[%emt 0:00:31] Wards off Bc5} Rg8 {[%emt 0:00:18]} 36. Bd1 {[%emt 0:00:28] [#]} Qxg2+ $3 {[%emt 0:00:10] Excellently played by Iniyan!   Weighted Error Value: White=1.13/Black=0.10 (very precise)} 0-1